[Event "Early-Titled-Tuesday-Blitz-February-06-2024"]
[Site "Chess.com"]
[Date "2024.02.06"]
[Round "2"]
[White "FM_VS99"]
[Black "WhiteKnight2612"]
[Result "1-0"]
[WhiteElo "2615"]
[BlackElo "2859"]
[TimeControl "180+1"]
[EndTime "8:20:21 PST"]
[Termination "FM_VS99 won by resignation"]

1. d4 {[%clk 0:03:00.9]} 1... d5 {[%clk 0:02:58.4]} 2. Nf3 {[%clk 0:03:01.1]}
2... Nf6 {[%clk 0:02:59]} 3. g3 {[%clk 0:03:01.4]} 3... c6 {[%clk 0:02:56.5]} 4.
Bg2 {[%clk 0:03:01.7]} 4... Bf5 {[%clk 0:02:57]} 5. O-O {[%clk 0:03:02.2]} 5...
h6 {[%clk 0:02:57.4]} 6. c4 {[%clk 0:03:02.6]} 6... e6 {[%clk 0:02:57.5]} 7. Nc3
{[%clk 0:03:03.1]} 7... Nbd7 {[%clk 0:02:57.2]} 8. Nd2 {[%clk 0:03:03.2]} 8...
Bh7 {[%clk 0:02:55.3]} 9. e4 {[%clk 0:03:02.3]} 9... dxe4 {[%clk 0:02:55.8]} 10.
Ndxe4 {[%clk 0:03:02.3]} 10... Be7 {[%clk 0:02:56.3]} 11. Be3 {[%clk 0:03:02]}
11... O-O {[%clk 0:02:56.2]} 12. h3 {[%clk 0:03:02.5]} 12... Nxe4 {[%clk
0:02:52.6]} 13. Nxe4 {[%clk 0:03:03.4]} 13... Nf6 {[%clk 0:02:53.2]} 14. Nc3
{[%clk 0:03:03.8]} 14... Qc7 {[%clk 0:02:50.3]} 15. a3 {[%clk 0:02:56.7]} 15...
Rfd8 {[%clk 0:02:49.6]} 16. Qe2 {[%clk 0:02:43.3]} 16... e5 {[%clk 0:02:46]} 17.
d5 {[%clk 0:02:33.3]} 17... cxd5 {[%clk 0:02:40.8]} 18. Nxd5 {[%clk 0:02:32.7]}
18... Nxd5 {[%clk 0:02:40.1]} 19. Bxd5 {[%clk 0:02:31]} 19... Rac8 {[%clk
0:02:38.9]} 20. Qg4 {[%clk 0:02:23.7]} 20... Kf8 {[%clk 0:02:33.7]} 21. b4
{[%clk 0:02:04.7]} 21... b5 {[%clk 0:02:24.8]} 22. Rac1 {[%clk 0:01:55.1]} 22...
Qd7 {[%clk 0:02:10.5]} 23. Qf3 {[%clk 0:01:28.4]} 23... Bg6 {[%clk 0:02:04.7]}
24. h4 {[%clk 0:01:25.3]} 24... bxc4 {[%clk 0:02:01.8]} 25. Rxc4 {[%clk
0:01:11.7]} 25... e4 {[%clk 0:01:53.4]} 26. Bxe4 {[%clk 0:01:06]} 26... Rxc4
{[%clk 0:01:52.6]} 27. Bxg6 {[%clk 0:01:06.2]} 27... Bf6 {[%clk 0:01:52.8]} 28.
Bb1 {[%clk 0:00:53.3]} 28... Kg8 {[%clk 0:01:41.1]} 29. Bxh6 {[%clk 0:00:49.2]}
29... Rc3 {[%clk 0:01:40.9]} 30. Be3 {[%clk 0:00:47]} 30... Rxa3 {[%clk
0:01:40.9]} 31. h5 {[%clk 0:00:43.6]} 31... Qd5 {[%clk 0:01:40.9]} 32. Qg4
{[%clk 0:00:34.3]} 32... Qe6 {[%clk 0:01:30.4]} 33. Bf5 {[%clk 0:00:33.7]} 33...
Qe5 {[%clk 0:01:30.1]} 34. Bf4 {[%clk 0:00:25.8]} 34... Qd4 {[%clk 0:01:18.1]}
35. Bb1 {[%clk 0:00:24.2]} 35... Qxb4 {[%clk 0:00:56.5]} 36. h6 {[%clk 0:00:19]}
36... Ra1 {[%clk 0:00:43.6]} 37. Qf5 {[%clk 0:00:16]} 37... Qa5 {[%clk
0:00:31.3]} 38. Qh7+ {[%clk 0:00:14.9]} 38... Kf8 {[%clk 0:00:31.8]} 39. hxg7+
{[%clk 0:00:13.6]} 39... Bxg7 {[%clk 0:00:31.8]} 40. Qc2 {[%clk 0:00:07.1]}
40... Qd5 {[%clk 0:00:26.5]} 41. Qc7 {[%clk 0:00:04.8]} 41... Re8 {[%clk
0:00:23.5]} 42. Bd6+ {[%clk 0:00:01.6]} 42... Kg8 {[%clk 0:00:23.6]} 43. Bf4
{[%clk 0:00:01.7]} 43... Be5 {[%clk 0:00:20.9]} 44. Qc2 {[%clk 0:00:01.5]} 44...
Bg7 {[%clk 0:00:17]} 45. Qh7+ {[%clk 0:00:02.2]} 45... Kf8 {[%clk 0:00:17.3]}
46. Bh6 {[%clk 0:00:03]} 46... Qe5 {[%clk 0:00:16.7]} 47. Qh8+ {[%clk
0:00:03.4]} 47... Ke7 {[%clk 0:00:16.7]} 48. Qxg7 {[%clk 0:00:02.5]} 48... Qxg7
{[%clk 0:00:17.6]} 49. Bxg7 {[%clk 0:00:03.4]} 49... Ra6 {[%clk 0:00:18.1]} 50.
Bd4 {[%clk 0:00:03.8]} 50... Re6 {[%clk 0:00:17.5]} 51. Be3 {[%clk 0:00:04.2]}
51... Rb8 {[%clk 0:00:17.1]} 52. Bf5 {[%clk 0:00:04.3]} 52... Rc6 {[%clk
0:00:16.1]} 53. Bxa7 {[%clk 0:00:04.1]} 53... Rb4 {[%clk 0:00:15.8]} 54. Be3
{[%clk 0:00:03.4]} 54... Kf6 {[%clk 0:00:16.1]} 55. Bh3 {[%clk 0:00:03.7]} 55...
Ke5 {[%clk 0:00:16.3]} 56. Bg2 {[%clk 0:00:04.3]} 56... Rc2 {[%clk 0:00:15.4]}
57. Rd1 {[%clk 0:00:04.8]} 57... Rcb2 {[%clk 0:00:14.8]} 58. Bf3 {[%clk
0:00:05.3]} 58... Rb1 {[%clk 0:00:14.8]} 59. Kg2 {[%clk 0:00:04.8]} 59... Rxd1
{[%clk 0:00:14.5]} 60. Bxd1 {[%clk 0:00:05.7]} 60... Kf6 {[%clk 0:00:15.2]} 61.
Bf3 {[%clk 0:00:06.1]} 61... Kg7 {[%clk 0:00:15.7]} 62. g4 {[%clk 0:00:06.7]}
62... f6 {[%clk 0:00:16.3]} 63. Bd5 {[%clk 0:00:05.9]} 63... Rb5 {[%clk
0:00:16.4]} 64. Be6 {[%clk 0:00:06]} 64... Re5 {[%clk 0:00:15.7]} 65. Bf5 {[%clk
0:00:06.5]} 65... Re8 {[%clk 0:00:16.3]} 66. Kg3 {[%clk 0:00:07]} 66... Rb8
{[%clk 0:00:15.7]} 67. Kf4 {[%clk 0:00:07.5]} 67... Rb4+ {[%clk 0:00:16]} 68.
Be4 {[%clk 0:00:08.1]} 68... Rb5 {[%clk 0:00:15.8]} 69. Bd4 {[%clk 0:00:08.3]}
69... Rb4 {[%clk 0:00:15]} 70. Ke3 {[%clk 0:00:08.6]} 70... Rb3+ {[%clk
0:00:15.2]} 71. Bd3 {[%clk 0:00:09]} 71... Kf7 {[%clk 0:00:15.3]} 72. f4 {[%clk
0:00:09.4]} 72... Rb4 {[%clk 0:00:15.3]} 73. Bc3 {[%clk 0:00:08.1]} 73... Ra4
{[%clk 0:00:14.9]} 74. Bd4 {[%clk 0:00:04.8]} 74... Rb4 {[%clk 0:00:14.9]} 75.
Ke4 {[%clk 0:00:05]} 75... Ra4 {[%clk 0:00:14.4]} 76. Bc2 {[%clk 0:00:05.6]}
76... Rb4 {[%clk 0:00:14.5]} 77. Kd3 {[%clk 0:00:05.9]} 77... Rb7 {[%clk
0:00:13.3]} 78. f5 {[%clk 0:00:06.1]} 78... Rb5 {[%clk 0:00:10.1]} 79. Kc4
{[%clk 0:00:05.9]} 79... Ra5 {[%clk 0:00:09.6]} 80. Bb3 {[%clk 0:00:05.8]} 80...
Kg7 {[%clk 0:00:09]} 81. Bc2 {[%clk 0:00:03.8]} 81... Ra2 {[%clk 0:00:08.4]} 82.
Kd3 {[%clk 0:00:02.9]} 82... Ra3+ {[%clk 0:00:08]} 83. Bc3 {[%clk 0:00:03]}
83... Kf7 {[%clk 0:00:08.4]} 84. Kd4 {[%clk 0:00:03]} 84... Ra4+ {[%clk
0:00:08.7]} 85. Bxa4 {[%clk 0:00:03]} 1-0

[Event "Early-Titled-Tuesday-Blitz-February-06-2024"]
[Site "Chess.com"]
[Date "2024.02.06"]
[Round "3"]
[White "Iskusnyh"]
[Black "Jojo_898"]
[Result "1-0"]
[WhiteElo "2661"]
[BlackElo "2445"]
[TimeControl "180+1"]
[EndTime "8:23:27 PST"]
[Termination "Iskusnyh won by resignation"]

1. d4 {[%clk 0:02:59.3]} 1... b6 {[%clk 0:02:57.4]} 2. c4 {[%clk 0:02:57.6]}
2... Bb7 {[%clk 0:02:56.7]} 3. Nc3 {[%clk 0:02:58.1]} 3... Nf6 {[%clk
0:02:56.8]} 4. Qc2 {[%clk 0:02:56.8]} 4... e6 {[%clk 0:02:52.5]} 5. e4 {[%clk
0:02:55.4]} 5... Bb4 {[%clk 0:02:49.7]} 6. Bd3 {[%clk 0:02:54.8]} 6... O-O
{[%clk 0:02:48.7]} 7. Ne2 {[%clk 0:02:54.8]} 7... d5 {[%clk 0:02:44.5]} 8. cxd5
{[%clk 0:02:53.5]} 8... exd5 {[%clk 0:02:43.8]} 9. e5 {[%clk 0:02:53.8]} 9...
Ne4 {[%clk 0:02:43.8]} 10. O-O {[%clk 0:02:53.4]} 10... Nxc3 {[%clk 0:02:37.9]}
11. bxc3 {[%clk 0:02:52.3]} 11... Be7 {[%clk 0:02:35.4]} 12. Bxh7+ {[%clk
0:02:52.3]} 12... Kh8 {[%clk 0:02:36]} 13. Bf5 {[%clk 0:02:48.7]} 13... g6
{[%clk 0:02:34.5]} 14. Bh3 {[%clk 0:02:47.5]} 14... Kg7 {[%clk 0:02:32.6]} 15.
g3 {[%clk 0:02:43.2]} 15... c5 {[%clk 0:02:31]} 16. Nf4 {[%clk 0:02:41.2]} 16...
Nc6 {[%clk 0:02:26.8]} 17. Be3 {[%clk 0:02:40.5]} 17... Rc8 {[%clk 0:02:25.9]}
18. Bxc8 {[%clk 0:02:33.1]} 18... Bxc8 {[%clk 0:02:23.4]} 19. Rad1 {[%clk
0:02:30.2]} 19... Bf5 {[%clk 0:02:21.7]} 20. Qa4 {[%clk 0:02:21.8]} 20... Qd7
{[%clk 0:02:16.1]} 21. dxc5 {[%clk 0:02:12.6]} 1-0

[Event "Early-Titled-Tuesday-Blitz-February-06-2024"]
[Site "Chess.com"]
[Date "2024.02.06"]
[Round "3"]
[White "BardArtem"]
[Black "MIJUAREZ"]
[Result "0-1"]
[WhiteElo "2771"]
[BlackElo "2517"]
[TimeControl "180+1"]
[EndTime "8:23:56 PST"]
[Termination "MIJUAREZ won by resignation"]

1. e4 {[%clk 0:03:00.9]} 1... Nc6 {[%clk 0:03:00.9]} 2. Nf3 {[%clk 0:02:59.5]}
2... d5 {[%clk 0:03:01.1]} 3. exd5 {[%clk 0:03:00.1]} 3... Qxd5 {[%clk 0:03:01]}
4. Nc3 {[%clk 0:03:00.8]} 4... Qd6 {[%clk 0:03:01.2]} 5. d4 {[%clk 0:02:59.5]}
5... Nf6 {[%clk 0:03:01.1]} 6. Nb5 {[%clk 0:02:48.8]} 6... Qd7 {[%clk
0:03:00.9]} 7. d5 {[%clk 0:02:48.8]} 7... Nb4 {[%clk 0:02:57.7]} 8. c4 {[%clk
0:02:44.9]} 8... c6 {[%clk 0:02:57.8]} 9. Nc3 {[%clk 0:02:38.9]} 9... e5 {[%clk
0:02:56.4]} 10. a3 {[%clk 0:02:34.7]} 10... e4 {[%clk 0:02:56.5]} 11. axb4
{[%clk 0:02:24.3]} 11... exf3 {[%clk 0:02:56.9]} 12. Qxf3 {[%clk 0:02:25.2]}
12... Bxb4 {[%clk 0:02:56.5]} 13. dxc6 {[%clk 0:02:20.5]} 13... Qxc6 {[%clk
0:02:50.2]} 14. Qxc6+ {[%clk 0:02:20]} 14... bxc6 {[%clk 0:02:50.8]} 15. Bd2
{[%clk 0:02:20.6]} 15... O-O {[%clk 0:02:50.9]} 16. O-O-O {[%clk 0:02:17.8]}
16... Ng4 {[%clk 0:02:50.8]} 17. Be1 {[%clk 0:02:14.3]} 17... Bxc3 {[%clk
0:02:49.5]} 18. bxc3 {[%clk 0:02:15.2]} 18... Rb8 {[%clk 0:02:48.5]} 19. h3
{[%clk 0:02:11.7]} 19... Bf5 {[%clk 0:02:48.1]} 20. Bd3 {[%clk 0:02:01.9]} 20...
Bxd3 {[%clk 0:02:47.3]} 21. Rxd3 {[%clk 0:02:02.8]} 21... Ne5 {[%clk 0:02:46]}
22. Rd4 {[%clk 0:02:03.1]} 22... c5 {[%clk 0:02:31.6]} 23. Rd5 {[%clk
0:01:58.2]} 23... Nxc4 {[%clk 0:02:30.1]} 24. Rxc5 {[%clk 0:01:57.5]} 24... Na3
{[%clk 0:02:29.6]} 25. f4 {[%clk 0:01:33.1]} 25... Rfd8 {[%clk 0:02:28.2]} 0-1

[Event "Early-Titled-Tuesday-Blitz-February-06-2024"]
[Site "Chess.com"]
[Date "2024.02.06"]
[Round "3"]
[White "bazar-wokzal"]
[Black "RamonManon0g"]
[Result "1-0"]
[WhiteElo "2595"]
[BlackElo "2408"]
[TimeControl "180+1"]
[EndTime "8:24:05 PST"]
[Termination "bazar-wokzal won by resignation"]

1. e4 {[%clk 0:03:00.9]} 1... c5 {[%clk 0:02:59.6]} 2. c3 {[%clk 0:03:00.8]}
2... Nf6 {[%clk 0:02:58.6]} 3. e5 {[%clk 0:03:01.1]} 3... Nd5 {[%clk 0:02:59.2]}
4. d4 {[%clk 0:03:01.7]} 4... cxd4 {[%clk 0:03:00]} 5. cxd4 {[%clk 0:03:02.6]}
5... e6 {[%clk 0:02:59.7]} 6. Nc3 {[%clk 0:03:02.4]} 6... Nxc3 {[%clk
0:02:57.4]} 7. bxc3 {[%clk 0:03:03.3]} 7... d6 {[%clk 0:02:57.4]} 8. f4 {[%clk
0:03:03.5]} 8... dxe5 {[%clk 0:02:56.6]} 9. fxe5 {[%clk 0:03:03.7]} 9... Qh4+
{[%clk 0:02:56.3]} 10. Ke2 {[%clk 0:03:03.3]} 10... b6 {[%clk 0:02:46.4]} 11.
Nf3 {[%clk 0:03:03.2]} 11... Ba6+ {[%clk 0:02:46.3]} 12. Ke3 {[%clk 0:03:03.2]}
12... Qg4 {[%clk 0:02:35]} 13. Bxa6 {[%clk 0:03:00.7]} 13... Nd7 {[%clk
0:02:20.4]} 14. Bb5 {[%clk 0:02:52.2]} 14... Rd8 {[%clk 0:02:17.4]} 15. Kf2
{[%clk 0:02:46.1]} 15... Be7 {[%clk 0:02:00.7]} 16. Bd3 {[%clk 0:02:42.1]} 16...
O-O {[%clk 0:01:59.3]} 17. h3 {[%clk 0:02:42]} 17... Bh4+ {[%clk 0:01:49.9]} 18.
Kg1 {[%clk 0:02:14]} 18... Qh5 {[%clk 0:01:41.2]} 19. g4 {[%clk 0:02:08.3]} 1-0

[Event "Early-Titled-Tuesday-Blitz-February-06-2024"]
[Site "Chess.com"]
[Date "2024.02.06"]
[Round "3"]
[White "HelvertHernandez"]
[Black "casparov00000"]
[Result "0-1"]
[WhiteElo "1923"]
[BlackElo "2319"]
[TimeControl "180+1"]
[EndTime "8:24:12 PST"]
[Termination "casparov00000 won by resignation"]

1. e4 {[%clk 0:02:53]} 1... Nf6 {[%clk 0:03:00.7]} 2. e5 {[%clk 0:02:51.9]} 2...
Nd5 {[%clk 0:03:00.8]} 3. d4 {[%clk 0:02:51.3]} 3... d6 {[%clk 0:03:01]} 4. c4
{[%clk 0:02:50.1]} 4... Nb6 {[%clk 0:03:01]} 5. exd6 {[%clk 0:02:50.1]} 5...
exd6 {[%clk 0:03:01.2]} 6. Nf3 {[%clk 0:02:49.9]} 6... Be7 {[%clk 0:03:01.4]} 7.
Nc3 {[%clk 0:02:48.2]} 7... Bg4 {[%clk 0:03:01.1]} 8. Be3 {[%clk 0:02:46.9]}
8... Bf6 {[%clk 0:02:59.9]} 9. Bd3 {[%clk 0:02:43.6]} 9... Nc6 {[%clk
0:02:59.5]} 10. Bc2 {[%clk 0:02:43.1]} 10... Nxc4 {[%clk 0:02:54]} 11. O-O
{[%clk 0:02:41.3]} 11... d5 {[%clk 0:02:25.8]} 12. Qd3 {[%clk 0:02:35.5]} 12...
Bxf3 {[%clk 0:02:23.7]} 13. gxf3 {[%clk 0:02:33.8]} 13... Ne7 {[%clk 0:02:23.7]}
14. Bf4 {[%clk 0:02:32.1]} 14... c6 {[%clk 0:02:23.2]} 15. Rfe1 {[%clk
0:02:30.7]} 15... Qd7 {[%clk 0:02:22.9]} 16. b3 {[%clk 0:02:25.3]} 16... Nd6
{[%clk 0:02:16.9]} 17. Na4 {[%clk 0:02:24.5]} 17... b6 {[%clk 0:02:16]} 18. Rac1
{[%clk 0:02:13.6]} 18... g6 {[%clk 0:02:13.8]} 19. Be5 {[%clk 0:02:07.9]} 19...
Bxe5 {[%clk 0:02:04.9]} 20. dxe5 {[%clk 0:02:07.3]} 20... Ndf5 {[%clk
0:01:59.9]} 21. Bb1 {[%clk 0:01:54.7]} 21... Nh4 {[%clk 0:01:59.5]} 22. e6
{[%clk 0:01:45.8]} 22... fxe6 {[%clk 0:01:57.6]} 23. Qd4 {[%clk 0:01:44.9]}
23... Nxf3+ {[%clk 0:01:56.8]} 0-1

[Event "Early-Titled-Tuesday-Blitz-February-06-2024"]
[Site "Chess.com"]
[Date "2024.02.06"]
[Round "3"]
[White "Lennis93"]
[Black "Iunusovnuriddin"]
[Result "1-0"]
[WhiteElo "2687"]
[BlackElo "2299"]
[TimeControl "180+1"]
[EndTime "8:24:15 PST"]
[Termination "Lennis93 won by resignation"]

1. d4 {[%clk 0:03:00.9]} 1... Nf6 {[%clk 0:02:56.2]} 2. c4 {[%clk 0:03:00.2]}
2... g6 {[%clk 0:02:56.6]} 3. Nc3 {[%clk 0:02:59.9]} 3... Bg7 {[%clk 0:02:57.2]}
4. e4 {[%clk 0:03:00.1]} 4... d6 {[%clk 0:02:57.8]} 5. Nf3 {[%clk 0:03:00.3]}
5... O-O {[%clk 0:02:58.4]} 6. h3 {[%clk 0:03:00.5]} 6... e5 {[%clk 0:02:57.9]}
7. d5 {[%clk 0:03:00.9]} 7... c6 {[%clk 0:02:57.3]} 8. Be3 {[%clk 0:02:59.5]}
8... cxd5 {[%clk 0:02:57.3]} 9. cxd5 {[%clk 0:02:58.9]} 9... a6 {[%clk
0:02:57.3]} 10. a4 {[%clk 0:02:50.2]} 10... b6 {[%clk 0:02:55.8]} 11. Be2 {[%clk
0:02:49.8]} 11... Bb7 {[%clk 0:02:53.7]} 12. O-O {[%clk 0:02:42.3]} 12... Nbd7
{[%clk 0:02:47.7]} 13. Nd2 {[%clk 0:02:36.2]} 13... Rc8 {[%clk 0:02:42.4]} 14.
Rc1 {[%clk 0:02:25.2]} 14... Ne8 {[%clk 0:02:16.7]} 15. b4 {[%clk 0:02:07.4]}
15... f5 {[%clk 0:02:14.7]} 16. f3 {[%clk 0:02:07.6]} 16... f4 {[%clk
0:02:14.9]} 17. Bf2 {[%clk 0:02:07.7]} 17... Bf6 {[%clk 0:02:04.8]} 18. Qe1
{[%clk 0:02:07.7]} 18... Rc7 {[%clk 0:01:55]} 19. Na2 {[%clk 0:02:05]} 19... Qc8
{[%clk 0:01:51]} 20. Rxc7 {[%clk 0:02:04.1]} 20... Qxc7 {[%clk 0:01:46.3]} 21.
Nc4 {[%clk 0:02:02.1]} 21... Ng7 {[%clk 0:01:42.8]} 22. Qd2 {[%clk 0:01:56.6]}
22... Nh5 {[%clk 0:01:40.3]} 23. Rc1 {[%clk 0:01:55.9]} 23... Qd8 {[%clk
0:01:37.8]} 24. Nxd6 {[%clk 0:01:54.9]} 1-0

[Event "Early-Titled-Tuesday-Blitz-February-06-2024"]
[Site "Chess.com"]
[Date "2024.02.06"]
[Round "3"]
[White "SouS007"]
[Black "microbear"]
[Result "1-0"]
[WhiteElo "2503"]
[BlackElo "2271"]
[TimeControl "180+1"]
[EndTime "8:24:40 PST"]
[Termination "SouS007 won by checkmate"]

1. e4 {[%clk 0:03:00.9]} 1... c5 {[%clk 0:02:58.3]} 2. Nf3 {[%clk 0:03:00.3]}
2... d6 {[%clk 0:02:58.4]} 3. d4 {[%clk 0:02:59.6]} 3... cxd4 {[%clk 0:02:56.9]}
4. Nxd4 {[%clk 0:03:00.5]} 4... Nf6 {[%clk 0:02:57.6]} 5. Nc3 {[%clk 0:03:00.2]}
5... Nc6 {[%clk 0:02:58.2]} 6. Bg5 {[%clk 0:02:59.6]} 6... Bd7 {[%clk
0:02:58.2]} 7. Qd2 {[%clk 0:02:54.9]} 7... Rc8 {[%clk 0:02:58.1]} 8. O-O-O
{[%clk 0:02:51.6]} 8... Nxd4 {[%clk 0:02:56.8]} 9. Qxd4 {[%clk 0:02:51.6]} 9...
Qa5 {[%clk 0:02:57.5]} 10. h4 {[%clk 0:02:50.3]} 10... h6 {[%clk 0:02:56.4]} 11.
Bxf6 {[%clk 0:02:45.2]} 11... gxf6 {[%clk 0:02:57.3]} 12. Kb1 {[%clk 0:02:42.8]}
12... Bg7 {[%clk 0:02:53.6]} 13. f4 {[%clk 0:02:35.4]} 13... Qc5 {[%clk
0:02:53.1]} 14. Qd3 {[%clk 0:02:31]} 14... Bg4 {[%clk 0:02:24.9]} 15. Be2 {[%clk
0:02:10.1]} 15... f5 {[%clk 0:02:25.1]} 16. e5 {[%clk 0:02:03.2]} 16... O-O
{[%clk 0:02:16.5]} 17. Bxg4 {[%clk 0:02:00.4]} 17... fxg4 {[%clk 0:02:16.3]} 18.
Nd5 {[%clk 0:01:59.4]} 18... dxe5 {[%clk 0:02:08.7]} 19. fxe5 {[%clk 0:01:58]}
19... Bxe5 {[%clk 0:02:01]} 20. Qf5 {[%clk 0:01:53.4]} 20... Bg7 {[%clk
0:01:43.9]} 21. Rd2 {[%clk 0:01:36.1]} 21... e6 {[%clk 0:01:33.6]} 22. Nf6+
{[%clk 0:01:34.7]} 22... Kh8 {[%clk 0:01:25.1]} 23. Qh7# {[%clk 0:01:34.1]} 1-0

[Event "Early-Titled-Tuesday-Blitz-February-06-2024"]
[Site "Chess.com"]
[Date "2024.02.06"]
[Round "3"]
[White "SantoBlue"]
[Black "soloderisas"]
[Result "1-0"]
[WhiteElo "2997"]
[BlackElo "2512"]
[TimeControl "180+1"]
[EndTime "8:24:48 PST"]
[Termination "SantoBlue won by resignation"]

1. e4 {[%clk 0:03:00.9]} 1... e5 {[%clk 0:02:59]} 2. Nc3 {[%clk 0:02:58.4]} 2...
Nc6 {[%clk 0:02:56.7]} 3. Bc4 {[%clk 0:02:58.2]} 3... Nf6 {[%clk 0:02:55.5]} 4.
d3 {[%clk 0:02:55.6]} 4... h6 {[%clk 0:02:52.2]} 5. Nge2 {[%clk 0:02:54.3]} 5...
Bc5 {[%clk 0:02:49.5]} 6. h3 {[%clk 0:02:53.5]} 6... a6 {[%clk 0:02:48.4]} 7. a4
{[%clk 0:02:50]} 7... d6 {[%clk 0:02:47.8]} 8. O-O {[%clk 0:02:50.1]} 8... Be6
{[%clk 0:02:42.8]} 9. Kh1 {[%clk 0:02:39.7]} 9... g5 {[%clk 0:02:38.8]} 10. Nd5
{[%clk 0:02:33.7]} 10... Bxd5 {[%clk 0:02:26.7]} 11. exd5 {[%clk 0:02:33.4]}
11... Ne7 {[%clk 0:02:26.7]} 12. d4 {[%clk 0:02:34]} 12... Bb6 {[%clk
0:02:05.3]} 13. a5 {[%clk 0:02:32.9]} 13... Ba7 {[%clk 0:02:05.2]} 14. Qd3
{[%clk 0:02:11.5]} 14... e4 {[%clk 0:01:57.5]} 15. Qb3 {[%clk 0:02:11]} 15...
Rb8 {[%clk 0:01:43.1]} 16. f3 {[%clk 0:01:55.6]} 16... Qd7 {[%clk 0:01:30.1]}
17. fxe4 {[%clk 0:01:41.5]} 17... Nxe4 {[%clk 0:01:31]} 18. Qf3 {[%clk
0:01:41.8]} 18... f5 {[%clk 0:01:30]} 19. Qh5+ {[%clk 0:01:37.3]} 19... Kd8
{[%clk 0:01:26.3]} 20. Ra3 {[%clk 0:01:34.6]} 20... Bxd4 {[%clk 0:01:25]} 21.
Nxd4 {[%clk 0:01:34.5]} 21... Ng3+ {[%clk 0:01:24.6]} 22. Rxg3 {[%clk
0:01:35.1]} 1-0

[Event "Early-Titled-Tuesday-Blitz-February-06-2024"]
[Site "Chess.com"]
[Date "2024.02.06"]
[Round "3"]
[White "hmatyi07"]
[Black "Kopytkin"]
[Result "1-0"]
[WhiteElo "2205"]
[BlackElo "2383"]
[TimeControl "180+1"]
[EndTime "8:24:48 PST"]
[Termination "hmatyi07 won on time"]

1. e4 {[%clk 0:03:00.9]} 1... Nf6 {[%clk 0:02:57.1]} 2. e5 {[%clk 0:03:00.4]}
2... Nd5 {[%clk 0:02:57.3]} 3. d4 {[%clk 0:03:00.9]} 3... d6 {[%clk 0:02:57.8]}
4. Nf3 {[%clk 0:03:01.4]} 4... g6 {[%clk 0:02:57.4]} 5. c4 {[%clk 0:02:56.2]}
5... Nb6 {[%clk 0:02:57.5]} 6. Nc3 {[%clk 0:02:56]} 6... Bg7 {[%clk 0:02:56.7]}
7. exd6 {[%clk 0:02:54.3]} 7... cxd6 {[%clk 0:02:57.6]} 8. Be3 {[%clk
0:02:53.5]} 8... O-O {[%clk 0:02:57.7]} 9. Rc1 {[%clk 0:02:52.7]} 9... Bg4
{[%clk 0:02:57.1]} 10. b3 {[%clk 0:02:51.5]} 10... d5 {[%clk 0:02:54.5]} 11. Be2
{[%clk 0:02:39.1]} 11... Nc6 {[%clk 0:02:53.4]} 12. c5 {[%clk 0:02:26.4]} 1-0

[Event "Early-Titled-Tuesday-Blitz-February-06-2024"]
[Site "Chess.com"]
[Date "2024.02.06"]
[Round "3"]
[White "Darius321"]
[Black "ChampStan"]
[Result "1-0"]
[WhiteElo "2375"]
[BlackElo "2108"]
[TimeControl "180+1"]
[EndTime "8:24:54 PST"]
[Termination "Darius321 won by resignation"]

1. e4 {[%clk 0:03:00.9]} 1... e5 {[%clk 0:02:57.4]} 2. Nf3 {[%clk 0:03:00.6]}
2... Nc6 {[%clk 0:02:57]} 3. d4 {[%clk 0:03:01]} 3... exd4 {[%clk 0:02:56.1]} 4.
Nxd4 {[%clk 0:03:01.9]} 4... Qf6 {[%clk 0:02:56.4]} 5. Be3 {[%clk 0:02:58.7]}
5... Bc5 {[%clk 0:02:55]} 6. c3 {[%clk 0:02:58.7]} 6... Nge7 {[%clk 0:02:44.3]}
7. Nc2 {[%clk 0:02:59.1]} 7... Bb6 {[%clk 0:02:42.2]} 8. Bxb6 {[%clk 0:02:58.4]}
8... axb6 {[%clk 0:02:41.3]} 9. Ne3 {[%clk 0:02:59.3]} 9... d6 {[%clk
0:02:40.8]} 10. Be2 {[%clk 0:02:58.9]} 10... O-O {[%clk 0:02:41]} 11. O-O {[%clk
0:02:59]} 11... Be6 {[%clk 0:02:41.1]} 12. Nd2 {[%clk 0:02:57.2]} 12... Rxa2
{[%clk 0:02:31.1]} 13. Rxa2 {[%clk 0:02:53.7]} 13... Bxa2 {[%clk 0:02:30.6]} 14.
Ng4 {[%clk 0:02:35.4]} 14... Qg6 {[%clk 0:02:26.8]} 15. b3 {[%clk 0:02:34.2]}
15... Qe6 {[%clk 0:02:12.4]} 16. Qc2 {[%clk 0:02:25.6]} 16... Ra8 {[%clk
0:01:46.7]} 17. Ra1 {[%clk 0:02:22]} 17... f5 {[%clk 0:01:33.7]} 18. Bc4 {[%clk
0:01:52.1]} 18... d5 {[%clk 0:01:23]} 19. exd5 {[%clk 0:01:52.3]} 19... Nxd5
{[%clk 0:01:21.2]} 20. Ne3 {[%clk 0:01:52.4]} 20... Nce7 {[%clk 0:01:12.7]} 21.
Rxa2 {[%clk 0:01:44.4]} 1-0

[Event "Early-Titled-Tuesday-Blitz-February-06-2024"]
[Site "Chess.com"]
[Date "2024.02.06"]
[Round "3"]
[White "Cheer_Down"]
[Black "ViIIagra"]
[Result "0-1"]
[WhiteElo "2509"]
[BlackElo "2955"]
[TimeControl "180+1"]
[EndTime "8:24:55 PST"]
[Termination "ViIIagra won by resignation"]

1. e4 {[%clk 0:02:50.3]} 1... g6 {[%clk 0:02:57.6]} 2. d4 {[%clk 0:02:49.8]}
2... d6 {[%clk 0:02:58]} 3. Nc3 {[%clk 0:02:48.9]} 3... a6 {[%clk 0:02:58]} 4.
Nf3 {[%clk 0:02:46.7]} 4... Bg7 {[%clk 0:02:54.3]} 5. Bd3 {[%clk 0:02:44.6]}
5... b5 {[%clk 0:02:54.2]} 6. Ne2 {[%clk 0:02:44.6]} 6... Nd7 {[%clk 0:02:52.4]}
7. Ng3 {[%clk 0:02:43.4]} 7... c5 {[%clk 0:02:52]} 8. c3 {[%clk 0:02:43.1]} 8...
Bb7 {[%clk 0:02:49.1]} 9. O-O {[%clk 0:02:42.7]} 9... Ngf6 {[%clk 0:02:49.3]}
10. e5 {[%clk 0:02:41.2]} 10... Bxf3 {[%clk 0:02:39.8]} 11. exf6 {[%clk
0:02:28.9]} 11... Bxd1 {[%clk 0:02:37.8]} 12. fxg7 {[%clk 0:02:28.8]} 12... Rg8
{[%clk 0:02:38.3]} 13. Rxd1 {[%clk 0:02:26.5]} 13... cxd4 {[%clk 0:02:09.3]} 14.
a4 {[%clk 0:02:17.7]} 14... f5 {[%clk 0:02:01.7]} 15. Bh6 {[%clk 0:01:57]} 15...
dxc3 {[%clk 0:01:50.4]} 16. axb5 {[%clk 0:01:54]} 16... cxb2 {[%clk 0:01:49.9]}
17. Rab1 {[%clk 0:01:52.7]} 17... Ne5 {[%clk 0:01:48.9]} 18. Be2 {[%clk
0:01:42.3]} 18... axb5 {[%clk 0:01:49.2]} 19. Bxb5+ {[%clk 0:01:41.1]} 19... Kf7
{[%clk 0:01:49.3]} 20. Rxb2 {[%clk 0:01:26.2]} 20... Rb8 {[%clk 0:01:36.2]} 21.
f4 {[%clk 0:01:18.5]} 21... Ng4 {[%clk 0:01:30.4]} 0-1